{"text_format":"1","workbook":"xlsx","n_sheets":24,"sheets":["Начало","мужчины","девушки","Лист1","Подростки Муж. скорость","Младшие Муж. скорость","Средние Муж. скорость","Старшие Муж. скорость","Взрослые Муж. скорость","Подростки Жен. скорость","Младшие Жен. скорость","Средние Жен. скорость","Старшие Жен. скорость","Взрослые Жен. скорость","Модуль2","Модуль1","Модуль7","Модуль3","Модуль4","Модуль5","Модуль6","Модуль8","Модуль9","Диалог1"],"not_rendered":{"charts":0,"images":0,"macros":1,"external_links":0,"defined_names":10,"comments":0,"pivot_tables":0},"unopened":[{"sheet":"Модуль2","index":14,"reason":"part_missing"},{"sheet":"Модуль1","index":15,"reason":"part_missing"},{"sheet":"Модуль7","index":16,"reason":"part_missing"},{"sheet":"Модуль3","index":17,"reason":"part_missing"},{"sheet":"Модуль4","index":18,"reason":"part_missing"},{"sheet":"Модуль5","index":19,"reason":"part_missing"},{"sheet":"Модуль6","index":20,"reason":"part_missing"},{"sheet":"Модуль8","index":21,"reason":"part_missing"},{"sheet":"Модуль9","index":22,"reason":"part_missing"},{"sheet":"Диалог1","index":23,"reason":"not_a_worksheet"}],"bounds":{"document_bytes":16777216,"sheet_cells":100000,"rows_first":2000,"rows_last":500,"rows_between":2000,"halvings":0,"cell_chars":16384,"cell_head_chars":4096},"cells_cut":0,"cells_raw":0,"read":"whole","date_system":"1900"}

{"sheet":"Начало","index":0,"n_rows":19,"n_cols":3,"rows_kept":19,"cut":false,"hidden":false,"merged":[]}
[]
[]
[]
[]
[]
[]
[]
[]
[]
[]
[]
[]
[]
[]
[]
[]
[]
[]
[null,null," "]

{"sheet":"мужчины","index":1,"n_rows":29,"n_cols":16,"rows_kept":29,"cut":false,"hidden":false,"merged":[[4,10,4,12],[4,13,4,15],[4,2,4,4],[4,0,5,0],[4,1,5,1],[4,5,4,9]]}
[]
[]
[null,null,null,"Итоговый протокол"]
[]
["Место","Фамилия, Имя","Квалификация",null,null,"Квалификация",null,null,null,null,"1/2 финала",null,null,"Финал"]
[null,null,1,2,"сумма",null,null,"1","2","сумма","1","2","сумма","1","2","сумма"]
[1,"Лощенко Иван","срыв","00:00:20.630",null,null,null,"00:00:17.480","00:00:14.540",{"$f":"H7+I7","v":"00:00:32.020"},"00:00:13.760","00:00:17.200",{"$f":"K7+L7","v":"00:00:30.960"},"00:00:25.780","00:00:17.860",{"$f":"N7+O7","v":"00:00:43.640"}]
[2,"Темерев Иван","00:00:13.510","00:00:14.920",{"$f":"C8+D8","v":"00:00:28.430"},null,null,"00:00:13.010","00:00:16.820","00:00:29.830","00:00:15.110","00:00:17.740",{"$f":"K8+L8","v":"00:00:32.850"},"срыв","00:00:15.950"]
[3,"Темерев Влад","00:00:16.950","00:00:20.520",{"$f":"C9+D9","v":"00:00:37.470"},null,null,"00:00:19.780","00:00:20.220","00:00:40","00:00:12.500","срыв",null,"срыв","00:00:18.360"]
[4,"Фальман Максим","00:00:20.600","срыв",null,null,null,"00:00:20.800","00:00:20.760","00:00:41.560","срыв","00:00:22.420",null,"срыв","срыв"]
[5,"Жасан Артём","00:00:43.150","00:00:36.890",{"$f":"C11+D11","v":"00:01:20.040"},null,null,"00:00:24.070","00:00:21.010","00:00:45.080"]
[6,"Становой Виктор","00:00:32.920","00:00:38.830",{"$f":"C12+D12","v":"00:01:11.750"},null,null,"00:00:29.010","00:00:30.350","00:00:59.360"]
[7,"Расковалов Дмитрий","00:00:44.580","00:00:36.880",{"$f":"C13+D13","v":"00:01:21.460"},null,null,"00:00:40.040","00:00:40.020","00:01:20.060"]
[8,"Галушкин Олег","срыв","00:00:38.980",null,null,null,"00:00:41.030","00:00:45.100","00:01:26.130"]
[9,"Богайчук Павел","срыв","00:00:51.260",null,null,null,"00:01:24.200","00:01:29.320","00:02:53.520"]
[10,"Кусков Василий","00:00:31.290","00:00:34.160",{"$f":"C16+D16","v":"00:01:05.450"}]
[11,"Жуков Сергей","00:00:33.050","00:00:39.140","00:01:12.190"]
[12,"Новосельцев Александр","00:00:39.260","00:00:35.350","00:01:14.610"]
[13,"Сурков Дмитрий","00:01:10","00:01:35.200","00:02:45.200"]
[14,"Иванов Сергей","00:00:34.950","00:00:44.640","00:01:19.590"]
[15,"Попов Юрий","00:00:56.230","00:00:51.920","00:01:48.150",null,null,null,null,null,null,null,null,null,null," "]
[16,"Коннов Михаил","срыв","00:00:19.320",null,null,null,"срыв","срыв","срыв"]
[17,"Энс Анатолий","00:00:50.680","срыв",null,null,null,"срыв","срыв","срыв"]
[18,"Лушников Тимофей","срыв","00:02:21.310"]
[19,"Степанов Кирилл","срыв","срыв"]
[20,"Фёдоров Дмитрий","срыв","срыв"]
[21,"Смирнов Слава","00:02:18.260","срыв"]
[22,"Галковский Аркадий","срыв","00:02:30.200"]
[23,"Ипполитов Фёдор","срыв","00:02:07.510"]

{"sheet":"девушки","index":2,"n_rows":13,"n_cols":11,"rows_kept":13,"cut":false,"hidden":false,"merged":[[4,5,4,7],[4,8,4,10],[4,0,5,0],[4,1,5,1],[4,2,4,4]]}
[]
[]
[]
[]
["Место","Фамилия, Имя","Квалификация",null,null,"1/2 финала",null,null,"Финал"]
[null,null,1,2,"сумма","1","2","сумма","1","2","сумма"]
[1,"Амбарцумова Ирина","00:00:27.300","00:00:25.850",{"$f":"C7+D7","v":"00:00:53.150"},"00:00:25.070","00:00:22.320",{"$f":"F7+G7","v":"00:00:47.390"},"00:00:41.590","00:00:25.570",{"$f":"I7+J7","v":"00:01:07.160"}]
[2,"Филатьева Юлия","00:00:21.700","00:00:24.210",{"$f":"C8+D8","v":"00:00:45.910"},"00:00:19.040","00:00:20.320",{"$f":"F8+G8","v":"00:00:39.360"},"срыв","00:00:19.200"]
[3,"Темерева Елена","00:00:39.900","00:00:49.290",{"$f":"C9+D9","v":"00:01:29.190"},"00:00:50.170","00:00:47",{"$f":"F9+G9","v":"00:01:37.170"},"00:00:28.250","00:00:31.450",{"$f":"I9+J9","v":"00:00:59.700"}]
[4,"Хромова Ульяна","00:00:27.860","00:00:37.500",{"$f":"C10+D10","v":"00:01:05.360"},"срыв","00:00:32.770",null,"00:00:34.340","00:00:30.070",{"$f":"I10+J10","v":"00:01:04.410"}]
[5,"Павлюк Анна","00:01:13.260","00:01:35.690",{"$f":"C11+D11","v":"00:02:48.950"}]
[6,"Санкевич Наташа","срыв","срыв","срыв"]
[7,"Копылова Дарья","срыв","срыв","срыв"]

{"sheet":"Лист1","index":3,"n_rows":46,"n_cols":11,"rows_kept":46,"cut":false,"hidden":true,"merged":[]}
[2,"Рудько Семен",87,"КМС","ДЮСШ-16","TOP",null,1]
[6,"Понамарев Стас",85,"КМС","ДЮСШ-16","TOP",null,1]
[13,"Копытов Федор",88,"КМС","ДЮСШ-16","TOP",null,1]
[14,"Дощинский Максим",85,"КМС","ДЮСШ-16","TOP",null,1]
[17,"Михалев Евгений",81,"б/р","Ариадна","TOP",null,1]
[18,"Параев Сергей",89,"КМС","ДЮСШ-16","TOP",null,1]
[21,"Кобелев Денис",82,1,"ДЮСШ-16","TOP",null,1]
[8,"Карих Дима",72,"КМС","Ветеран",21,null,8]
[9,"Кузнецов Александр",84,"б/р","Ариадна",21,null,8]
[20,"Черкашин Иван",85,"б/р","Ариадна",20,null,10]
[10,"Петухов Виталий",88,1,"ДЮСШ-16",19,"+",11]
[11,"Мякшин Андрей",87,"б/р","Ариадна",19,"+",11]
[12,"Аксименко Витя",88,1,"Арба",19,"+",11]
[16,"Прокопенко Кирилл",89,"КМС","ДЮСШ-16",19,"+",11]
[1,"Жигалов Федор",89,"б/р","Ариадна",19,null,15]
[4,"Татарчуков Саша",91,3,"ДЮСШ-16",19,null,15]
[15,"Мишков Андрей",70,"б/р","Ветеран",19,null,15]
[7,"Чернов Павел",null,"б/р","Ариадна",18,"+",18]
[5,"Новиков Анатолий",89,"б/р","ДЮСШ-16",18,null,19]
[19,"Осмольский Александр",87,"б/р","Арба",15,"+",20]
[3,"Лебедев Александр",87,"б/р","Ариадна",4,null,21]
[1,"Мочалов Иван",82,"б/р","Ариадна",null,null,null,"TOP",null,1]
[2,"Асланов Руслан",89,3,"ДЮСШ-16",null,null,null,"TOP",null,1]
[3,"Терехин Василий",84,"КМС","ТАКТ",null,null,null,"TOP",null,1]
[4,"Жуков Сергей",79,"б/р","Ариадна",null,null,null,"TOP",null,1]
[7,"Морев Артем",89,"КМС","ДЮСШ-16",null,null,null,"TOP",null,1]
[9,"Сидорко Сережа",89,null,"ДЮСШ-16",null,null,null,"TOP",null,1]
[15,"Петин Ваня",null,2,"ТАКТ",null,null,null,"TOP",null,1]
[16,"Назаров Никита",84,"КМС","Сам",null,null,null,"TOP",null,1]
[17,"Федотов Александр",76,"б/р","ТАКТ",null,null,null,"TOP",null,1]
[18,"Филатьев Олег",79,"КМС","Альпклуб",null,null,null,"TOP",null,1]
[19,"Алтухов Антон",84,1,"Ариадна",null,null,null,"TOP",null,1]
[20,"Паршин Антон",81,2,"Барнаул",null,null,null,"TOP",null,1]
[22,"Ложкомоев Саша",82,1,"ДЮСШ-16",null,null,null,"TOP",null,1]
[25,"Новоселов Саша",84,"КМС","ДЮСШ-16",null,null,null,"TOP",null,1]
[5,"ДерешевДанил",86,"б/р","Ариадна",null,null,null,16,null,15]
[6,"Шестаков Василий",88,"б/р","ДЮСШ-16",null,null,null,16,null,15]
[11,"Тулаев Денис",74,"б/р","ТАКТ",null,null,null,16,null,15]
[8,"Субботин Андрей",89,"2ю","ДЮСШ-16",null,null,null,15,null,18]
[10,"Соловьев Тимофей",89,1,"ДЮСШ-16",null,null,null,15,null,18]
[23,"Варюшкин Саша",88,"б/р","ДЮСШ-16",null,null,null,15,null,18]
[14,"Свиридов Костя",82,"б/р","Ариадна",null,null,null,14,null,21]
[13,"Попов Антон",87,"б/р","Кедр",null,null,null,12,null,22]
[12,"Седлецкий Захар",83,"б/р","Альпклуб",null,null,null,11,null,23]
[21,"Калинин Павел",89,"б/р","Арба",null,null,null,11,null,23]
[24,"Гуренков Костя",77,"б/р","Альпклуб",null,null,null,"н/я"]

{"sheet":"Подростки Муж. скорость","index":4,"n_rows":45,"n_cols":16,"rows_kept":45,"cut":false,"hidden":true,"merged":[]}
[]
[null,null,null,null,"ИТОГОВЫЙ ПРОТОКОЛ"]
[null,null,null,null,"юноши младшая группа"]
[]
["Итог.","Фамилия имя отчество","Год","спорт."," "," ",null,"1/4 финала",null,null,"1/2 финала",null,null,"финал",null,"Вып."]
[null,"год рождения","Рожд.","разр.","Город","Тренер","бал.","прим","место","бал.","прим","место","бал.","прим","место","разр."]
[null,"Рудько Семен",87,1,"Томск","Афанасьева"]
[null,"Романов Рома",87,"1ю","Томск","Афанасьева"]
[null,"Пушкарев Дима",87,"б/р","Томск","Афанасьева"]
[null,"Мельников Б",87,"б/р","Томск","Афанасьва"]
[null,"Марков паша",88,"2ю","Томск","Афанасьева"]
[null,"Кошкаров Егор",89,"2ю","Томск","Афанасьева"]
[null,"Юлдашев Тимур",89,2,"Томск","Афанасьева"]
[null,"Ефимов Женя",87,"б.р.","Кемерово","Ильины"]
[null,"Козик Руслан",87,"2 юн","Кемерово","Ильины"]
[null,"Орлов Антон",88,"б.р.","Кемерово","Ильины"]
[null,"Орлов Саша",90,"б.р.","Кемерово","Ильины"]
[null,"Догужский Костя",89,"б.р.","Томск","Лунева"]
[null,"Чеканцев Александр",89,"1 юн","Томск","Лунева"]
[null,"Лещев Владимир",88,"б.р.","Томск","Лунева"]
[null,"Санаров Денис",88,"б.р.","Томск","Лунева"]
[null,"Борцов Захар",87,"б.р.","Томск","Лунева"]
[null,"Борцов Владимир",87,"б.р.","Томск","Лунева"]
[null,"Крымов Алексей",87,2,"Томск","Лунева"]
[null,"Поздеев Саша",91,"б.р.","Новосибирск","Бурдакова"]
[null,"Фаге Алексей",87,"б.р.","Новосибирск","Бурдакова"]
[null,"Попов Максим",87,"б.р.","Новосибирск","Бурдакова"]
[null,"Попов Максим",87,"б.р.","Томск","Немцева"]
[null,"Колбин Петя",87,"б.р.","Томск","Немцева"]
[null,"Сафроненко Андрей",87,"2 юн","Томск","Немцева"]
[null,"Байгулов Андрей",87,3,"Томск","Немцева"]
[null,"Васильев Алексей",87,2,"Томск","Немцева"]
[null,"Аршан Женя",87,"б.р.","Кемерово","Бушуева"]
[null,"Чесноков Саша",87,"б.р.","Кемерово","Бушуева"]
[null,"Мышкевич Саша",88,"б.р.","Кемерово","Бушуева"]
[null,"Лукин Саша",87,"2 юн","Томск","Карих"]
[null,"Хасанов Каиль",87,"б.р.","Томск","Карих"]
[null,"Тихонов Женя",87,"б.р.","Томск","Карих"]
[null,"Хлыстов Миша",88,"б.р.","Томск","Карих"]
[null,"Овчинников Вова",89,"б.р.","Томск","Карих"]
[null,"Морозов Илья",87,"б.р.","Бийск","Пляскин"]
[null,"Сенкевич Сергей",89,"б.р.","Томск","Шлехт"]
[null,"Прокопенко Кирилл",89,3,"Томск","Шлехт"]
[null,"Шурупов Слава",88,"б.р.","Томск","Шлехт"]
[null,"Попов Женя",88,"б.р.","Томск","Шлехт"]

{"sheet":"Младшие Муж. скорость","index":5,"n_rows":34,"n_cols":16,"rows_kept":34,"cut":false,"hidden":true,"merged":[]}
[]
[null,null,null,null,"ИТОГОВЫЙ ПРОТОКОЛ"]
[null,null,null,null,"юноши младшая группа"]
[]
["Итог.","Фамилия имя отчество","Год","спорт."," "," ",null,"1/4 финала",null,null,"1/2 финала",null,null,"финал",null,"Вып."]
[null,"год рождения","Рожд.","разр.","Город","Тренер","бал.","прим","место","бал.","прим","место","бал.","прим","место","разр."]
[null,"Климов Коля",86,2,"Томск","Афанасьева"]
[null,"Жолбосынов Айбек",85,"б/р","Томск","Афанасьева"]
[null,"Мустафин Эльдар",85,"2ю","Томск","Афанасьева"]
[null,"Коротков Миша",85,"КМС","Томск","Афанасьева"]
[null,"Дощинский Максим",85,"кмс","Томск","Афанасьева"]
[null,"Чиндин Сергей",85,1,"Кемерово","Ильины"]
[null,"Лумнов Женя",86,"б.р.","Кемерово","Ильины"]
[null,"Котенко Алексей",86,"б.р.","Кемерово","Ильины"]
[null,"Павлович Николай",85,1,"Томск","Лунева"]
[null,"Чеканцев Никита",85,1,"Томск","Лунева"]
[null,"Пономарев Станислав",85,"КМС","Томск","Лунева"]
[null,"Загвоздин Константин",85,"КМС","Томск","Лунева"]
[null,"Дуплинский Георгий",86,1,"Новокузнецк","Санников"]
[null,"Романцев Максим",85,2,"Новокузнецк","Санников"]
[null,"Коллегов Иван",86,3,"Новосибирск","Бурдакова"]
[null,"Чаюн Игорь",86,2,"Новосибирск","Бурдакова"]
[null,"Максимов Василий",86,"б.р.","Новосибирск","Бурдакова"]
[null,"Качан Алексей",86,"б.р.","Томск","Немцева"]
[null,"Смуткин Егор",86,1,"Томск","Шлехт"]
[null,"Смуткин Андрей",85,"КМС","Томск","Шлехт"]
[null,"Шлехт Егор",85,1,"Томск","Шлехт"]
[null,"Тихонов Егор",85,"б.р.","Томск","Карих"]
[null,"Камышный Толя",86,"б.р.","Томск","Карих"]
[null,"Григорьев Тимофей",85,1,"Бийск","Пляскин"]
[null,"Панюков Паша",86,"б.р.","Кемерово","Бушуева"]
[null,"Кожемяко Эдик",86,"КМС","Кемерово","Бушуева"]
[null,"Деменев Андрей",85,"КМС","Кемерово","Бушуева"]
[null,"Новоселов Женя",86,1,"Томск","Шлехт"]

{"sheet":"Средние Муж. скорость","index":6,"n_rows":26,"n_cols":16,"rows_kept":26,"cut":false,"hidden":true,"merged":[]}
[]
[null,null,null,null,"ИТОГОВЫЙ ПРОТОКОЛ"]
[null,null,null,null,"юноши младшая группа"]
[]
["Итог.","Фамилия имя отчество","Год","спорт."," "," ",null,"1/4 финала",null,null,"1/2 финала",null,null,"финал",null,"Вып."]
[null,"год рождения","Рожд.","разр.","Город","Тренер","бал.","прим","место","бал.","прим","место","бал.","прим","место","разр."]
[null,"Назаров Никита",84,1,"Томск","Афанасьева"]
[null,"Коротков Александр",83,"кмс","Томск","Афанасьева"]
[null,"Александров",84,"КМС","Кемерово","Ильины"]
[null,"Демахин Алеквей",84,"КМС","Кемерово","Ильины"]
[null,"Демахин Алеквей",84,"КМС","Кемерово","Ильины"]
[null,"Ильин Евгений",83,"КМС","Томск","Лунева"]
[null,"Кропотов Андрей",84,"б.р.","Новокузнецк","Санников"]
[null,"Чистяков Сергей",84,"б.р.","Новокузнецк","Санников"]
[null,"Травников Алексей",83,1,"Новокузнецк","Санников"]
[null,"Павлов Иван",84,1,"Новосибирск","Бурдакова"]
[null,"Зверев Олег",84,1,"Томск","Шлехт"]
[null,"Загальский Олег",83,"КМС","Томск","Шлехт"]
[null,"Огурцов Алеша",84,2,"Кемерово","Бушуева"]
[null,"Гуляев Паша",84,"КМС","Кемерово","Бушуева"]
[null,"Залетов Игорь",83,"КМС","Кемерово","Бушуева"]
[null,"Морозов Семен",84,1,"Бийск","Пляскин"]
[null,"Саландо Слава",83,"б.р.","Томск","Карих"]
[null,"Корнев Сергей",83,"б.р.","Томск","Перов"]
[null,"Бочкарев Женя",83,1,"Барнаул","Язовский"]
[null,"Мартынов Егор",84,1,"Барнаул","Язовский"]

{"sheet":"Старшие Муж. скорость","index":7,"n_rows":14,"n_cols":16,"rows_kept":14,"cut":false,"hidden":true,"merged":[]}
[]
[null,null,null,null,"ИТОГОВЫЙ ПРОТОКОЛ"]
[null,null,null,null,"юноши младшая группа"]
[]
["Итог.","Фамилия имя отчество","Год","спорт."," "," ",null,"1/4 финала",null,null,"1/2 финала",null,null,"финал",null,"Вып."]
[null,"год рождения","Рожд.","разр.","Город","Тренер","бал.","прим","место","бал.","прим","место","бал.","прим","место","разр."]
[null,"Борисов А.",82,1,"Томск","Афанасьева"]
[null,"Борисов А.",82,1,"Томск","Афанасьева"]
[null,"Красов Алексей",82,"КМС","Томск","Лунева"]
[null,"Сайгаш Дима",82,"КМС","Томск","Шлехт"]
[null,"Зуев Василий",82,"КМС","Томск","Шлехт"]
[null,"Сафонов Алексей",81,"КМС","Томск","Шлехт"]
[null,"Кучеров Виктор",81,"КМС","Кемерово","Бушуева"]
[null,"Шадринцев Артем",81,"КМС","Бийск","Пляскин"]

{"sheet":"Взрослые Муж. скорость","index":8,"n_rows":21,"n_cols":16,"rows_kept":21,"cut":false,"hidden":true,"merged":[]}
[]
[null,null,null,null,"ИТОГОВЫЙ ПРОТОКОЛ"]
[null,null,null,null,"юноши младшая группа"]
[]
["Итог.","Фамилия имя отчество","Год","спорт."," "," ",null,"1/4 финала",null,null,"1/2 финала",null,null,"финал",null,"Вып."]
[null,"год рождения","Рожд.","разр.","Город","Тренер","бал.","прим","место","бал.","прим","место","бал.","прим","место","разр."]
[null,"Алексеев Игорь",80,"кмс","томск"]
[null,"Гречушкин Саша",80,1,"Новосибирск","Бурдакова"]
[null,"Алексеев Игорь",80,"КМС","Новосибирск","Бурдакова"]
[null,"Ксенчук Андрей",80,"б.р.","Новосибирск","Бурдакова"]
[null,"Мануйлов Виктор",80,3,"Новосибирск","Бурдакова"]
[null,"Чащин Дима",79,3,"Томск","Шлехт"]
[null,"Залетов Андрей",80,"КМС","Кемерово","Бушуева"]
[null,"Алексеев Игорь",80,"КМС","Новосибирск","Бурдакова"]
[null,"Ксенчук Андрей",80,"б.р.","Новосибирск","Бурдакова"]
[null,"Гречушкин Александр",80,1,"Новосибирск","Бурдакова"]
[null,"Мануйлов Виктор",80,2,"Новосибирск","Бурдакова"]
[null,"Леонтьев Н.",80,"КМС","Барнаул","Язовский"]
[null,"Яшин Егор",79,1,"Томск","\"Арба\""]
[null,"Бекенов Ерлан",80,"б.р.","Томск","\"Ариадна\""]
[null,"Иваненко",79,"б.р.","Томск","?"]

{"sheet":"Подростки Жен. скорость","index":9,"n_rows":24,"n_cols":16,"rows_kept":24,"cut":false,"hidden":true,"merged":[]}
[]
[null,null,null,null,"ИТОГОВЫЙ ПРОТОКОЛ"]
[null,null,null,null,"юноши младшая группа"]
[]
["Итог.","Фамилия имя отчество","Год","спорт."," "," ",null,"1/4 финала",null,null,"1/2 финала",null,null,"финал",null,"Вып."]
[null,"год рождения","Рожд.","разр.","Город","Тренер","бал.","прим","место","бал.","прим","место","бал.","прим","место","разр."]
[null,"Куликова Люба",87,"2ю","Томск","Афанасьева"]
[null,"Хорсова Алена",87,"б/р","Томск","Афанасьева"]
[null,"Мареева Ира",88,"б/р","Томск","Афанасьева"]
[null,"Мареева Ира",88,"б/р","Томск","Афанасьева"]
[null,"Зайцева Лиза",87,"2 юн","Кемерово","Ильины"]
[null,"Форманчук Надя",88,"б.р.","Кемерово","Ильины"]
[null,"Форманчук Надя",88,"б.р.","Кемерово","Ильины"]
[null,"Горбунова Вика",88,"б.р.","Томск","Лунева"]
[null,"Павлова Ольга",87,"б.р.","Томск","Лунева"]
[null,"Горохова Катя",90,"б.р.","Новосибирск","Бурдакова"]
[null,"Горохова Катя",90,3,"Новосибирск","Бурдакова"]
[null,"Поздеева Катя",90,"б.р.","Новосибирск","Бурдакова"]
[null,"Гольдман Женя",87,"б.р.","Новосибирск","Бурдакова"]
[null,"Урманчеева Наиля",87,"б.р.","Томск","Немцева"]
[null,"Морозова Кристина",87,"б.р.","Кемерово","Бушуева"]
[null,"Зименс Аня",88,"б.р.","Кемерово","Бушуева"]
[null,"Линник Аня",87,"б.р.","Томск","Карих"]
[null,"Борзова Аня",87,3,"Бийск","Пляскин"]

{"sheet":"Младшие Жен. скорость","index":10,"n_rows":15,"n_cols":16,"rows_kept":15,"cut":false,"hidden":true,"merged":[]}
[]
[null,null,null,null,"ИТОГОВЫЙ ПРОТОКОЛ"]
[null,null,null,null,"юноши младшая группа"]
[]
["Итог.","Фамилия имя отчество","Год","спорт."," "," ",null,"1/4 финала",null,null,"1/2 финала",null,null,"финал",null,"Вып."]
[null,"год рождения","Рожд.","разр.","Город","Тренер","бал.","прим","место","бал.","прим","место","бал.","прим","место","разр."]
[null,"Попельняк Олеся",86,"2ю","Томск","Афанасева"]
[null,"Гаврилюк Катя",86,2,"Кемерово","Ильины"]
[null,"Лунева Ирина",85,"б.р.","Томск","Лунева"]
[null,"Пономарева Валерия",85,2,"Томск","Лунева"]
[null,"Ком Ольга",86,2,"Томск","Шлехт"]
[null,"Рыбалова Оля",85,"б.р.","Томск","Шлехт"]
[null,"Жукова Валя",86,"б.р.","Томск","Карих"]
[null,"Леонтюк Ульяна",86,"б.р.","Томск","Карих"]
[null,"Панова Женя",86,"б.р.","Бийск","Пляскин"]

{"sheet":"Средние Жен. скорость","index":11,"n_rows":13,"n_cols":16,"rows_kept":13,"cut":false,"hidden":true,"merged":[]}
[]
[null,null,null,null,"ИТОГОВЫЙ ПРОТОКОЛ"]
[null,null,null,null,"юноши младшая группа"]
[]
["Итог.","Фамилия имя отчество","Год","спорт."," "," ",null,"1/4 финала",null,null,"1/2 финала",null,null,"финал",null,"Вып."]
[null,"год рождения","Рожд.","разр.","Город","Тренер","бал.","прим","место","бал.","прим","место","бал.","прим","место","разр."]
[null,"Ильина Ксения",83,1,"Томск","Лунева"]
[null,"Гильманова Вероника",84,3,"Новокузнецк","Санников"]
[null,"Дуплинская Юля",83,"КМС","Новокузнецк","Санников"]
[null,"Сиволапова Екатерина",83,"КМС","Новокузнецк","Санников"]
[null,"Бурдакова Юля",83,"КМС","Новосибирск","Бурдакова"]
[null,"Бугрова Таня",83,"б.р.","Томск","Шлехт"]
[null,"Крачковская Инга",84,"б.р.","Кемерово","Бушуева"]

{"sheet":"Старшие Жен. скорость","index":12,"n_rows":10,"n_cols":16,"rows_kept":10,"cut":false,"hidden":true,"merged":[]}
[]
[null,null,null,null,"ИТОГОВЫЙ ПРОТОКОЛ"]
[null,null,null,null,"юноши младшая группа"]
[]
["Итог.","Фамилия имя отчество","Год","спорт."," "," ",null,"1/4 финала",null,null,"1/2 финала",null,null,"финал",null,"Вып."]
[null,"год рождения","Рожд.","разр.","Город","Тренер","бал.","прим","место","бал.","прим","место","бал.","прим","место","разр."]
[null,"Киселева Вероника",82,1,"Кемерово","Ильины"]
[null,"Лунева Лена",81,"КМС","Томск","Лунева"]
[null,"Ларионова Ирина",81,"КМС","Томск","Шлехт"]
[null,"Бадрутдинова Наташа",81,1,"Томск","Шлехт"]

{"sheet":"Взрослые Жен. скорость","index":13,"n_rows":7,"n_cols":16,"rows_kept":7,"cut":false,"hidden":true,"merged":[]}
[]
[null,null,null,null,"ИТОГОВЫЙ ПРОТОКОЛ"]
[null,null,null,null,"юноши младшая группа"]
[]
["Итог.","Фамилия имя отчество","Год","спорт."," "," ",null,"1/4 финала",null,null,"1/2 финала",null,null,"финал",null,"Вып."]
[null,"год рождения","Рожд.","разр.","Город","Тренер","бал.","прим","место","бал.","прим","место","бал.","прим","место","разр."]
[null,"Ларина Лена",79,"б.р.","Томск","Шлехт"]